bitfinex/quotes_ETHUSD_20240731
["timestamp","ask_amount","ask_price","bid_price","bid_amount"]
[1722445550280,3.02687,3303.8,3303.4,0.06943747]
[1722445550513,3.02691,3303.7,3303.1,3.02742]
[1722445550685,3.02691,3303.7,3303.5,0.06939877]
[1722445550901,3.02673,3303.9,3303.2,3.02736]
[1722445550902,3.02682,3303.8,3303.2,3.02736]
[1722445551100,3.02682,3303.8,3303.3,0.06947617]
[1722445551295,3.02691,3303.7,3303.0,3.02747]
[1722445551500,3.02691,3303.7,3303.1,3.94975059]
[1722445551700,3.02691,3303.7,3303.1,3.64700359]
[1722445552414,3.02691,3303.7,3303.1,3.64695359]
[1722445553139,3.02691,3303.7,3303.1,6.67433359]
[1722445553439,3.02691,3303.7,3303.2,3.02735]
[1722445553637,3.02715,3303.5,3303.1,0.06955359]
[1722445553837,3.02718,3303.4,3303.3,0.06947617]
[1722445554039,3.02718,3303.4,3303.2,0.06951488]
[1722445554244,0.302691,3303.6,3302.9,3.02764]
[1722445554399,3.0271,3303.5,3303.3,0.06947617]
[1722445554605,3.0271,3303.5,3302.9,3.02764]
[1722445554835,3.0271,3303.5,3303.4,0.06943747]
[1722445555346,3.02701,3303.6,3303.4,0.06943747]
[1722445555517,7.35941,3304.2,3303.1,3.0274]
[1722445555518,3.02677,3303.9,3303.1,3.0274]
[1722445555860,3.02677,3303.9,3303.5,0.06974498]
[1722445555861,3.02688,3303.8,3303.5,0.06974498]
[1722445556062,3.027,3303.6,3303.0,3.02747]
[1722445556722,3.02675,3303.9,3303.1,0.13044403]
[1722445556957,3.02697,3303.7,3303.1,3.0972898]
[1722445557162,3.0269,3303.8,3303.1,3.0973498]
[1722445557369,0.735941,3304.1,3303.1,3.0973498]
[1722445557370,3.02691,3303.7,3303.1,3.0973498]
[1722445558524,3.02691,3303.7,3303.1,6.1247398]
[1722445558728,3.02691,3303.7,3303.1,3.70976378]
[1722445558981,3.02691,3303.7,3303.2,3.02736]
[1722445559325,3.02691,3303.7,3303.3,0.06982239]
[1722445559524,3.02691,3303.7,3303.2,3.02736]
[1722445559754,3.02691,3303.7,3303.3,0.06982239]
[1722445560078,0.735941,3304.1,3302.8,0.55]
[1722445560224,3.02728,3303.3,3302.7,5.31671]
[1722445560421,3.02719,3303.4,3302.8,3.02767]
[1722445560880,3.02728,3303.3,3302.7,3.02781]
[1722445561380,3.02738,3303.2,3302.7,3.02781]
[1722445562271,3.02746,3303.1,3302.6,35.0]
[1722445562488,3.02746,3303.1,3302.2,3.02823]
[1722445562489,3.02782,3302.8,3302.1,3.02834]
[1722445562628,3.02782,3302.8,3302.0,10.31846]
[1722445562629,3.02793,3302.6,3302.0,10.31846]
[1722445562982,3.02793,3302.6,3301.8,5.38908]
[1722445562983,3.02777,3302.8,3301.8,2.3605]
[1722445563183,2.2904,3303.1,3301.9,0.23605]
[1722445563184,3.02759,3303.0,3301.9,0.23605]
[1722445563324,3.02759,3303.0,3302.4,3.02805]
[1722445563523,3.02764,3302.9,3302.4,3.02805]
[1722445563725,3.02764,3302.9,3302.2,3.02821]
[1722445563928,3.02778,3302.8,3302.2,6.05642]
[1722445564228,7.45845,3303.3,3302.7,3.0278]
[1722445564523,3.02737,3303.2,3302.5,3.02792]
[1722445564728,3.0275,3303.1,3302.5,3.02792]
[1722445564949,3.02737,3303.2,3302.7,3.02782]
[1722445565155,3.02762,3303.0,3302.3,6.05626]
[1722445565329,3.02765,3302.9,3302.3,3.02812]
[1722445565520,3.02751,3303.1,3302.5,3.028]
[1722445565953,3.02751,3303.1,3302.3,3.02814]
[1722445566278,2.4821,3303.5,3301.8,2.3605]
[1722445566485,3.0281,3302.4,3301.8,2.3605]
[1722445566788,3.02792,3302.6,3302.0,3.02846]
[1722445567128,3.02814,3302.4,3301.8,5.38907]
[1722445567328,3.02814,3302.4,3301.8,6.01377829]
[1722445568175,3.02797,3302.6,3301.9,3.02851]
[1722445568478,5.52448,3302.8,3302.0,3.02846]
[1722445568625,3.02791,3302.7,3302.0,3.0284]
[1722445569028,3.02798,3302.6,3301.9,3.0285]
[1722445569261,3.02814,3302.4,3301.6,3.02878]
[1722445569462,3.02814,3302.4,3301.8,3.02863]
[1722445570058,3.02843,3302.1,3301.4,2.4744]
[1722445570228,3.02844,3302.1,3301.5,3.02891]
[1722445570432,3.02856,3301.9,3301.4,2.4744]
[1722445570724,3.02856,3301.9,3301.3,10.31903]
[1722445570926,3.02865,3301.8,3301.3,11.350933]
[1722445571126,3.02834,3302.2,3301.5,3.02883]
[1722445571322,3.02834,3302.2,3301.3,1.031903]
[1722445571323,7.45915,3302.5,3301.9,3.02855]
[1722445571535,7.45915,3302.5,3302.0,3.02844]
[1722445571536,4.4311,3302.5,3302.0,3.02844]
[1722445571970,4.4311,3302.5,3302.2,3.02826]
[1722445572126,4.4311,3302.5,3302.1,0.0687976]
[1722445572326,4.4311,3302.5,3302.1,3.0971676]
[1722445572773,4.4311,3302.5,3302.1,0.0687976]
[1722445572927,7.45911,3302.5,3301.9,3.02849]
[1722445573263,7.45911,3302.5,3302.0,0.06934645]
[1722445573627,4.4311,3302.5,3302.1,3.02831]
[1722445573823,4.4311,3302.5,3302.1,3.09761772]
[1722445574027,4.4311,3302.5,3302.1,0.06930772]
[1722445574268,4.4311,3302.5,3301.9,6.05698]
[1722445574269,4.4311,3302.5,3302.0,3.02846]
[1722445574469,4.4311,3302.5,3302.2,0.06926899]
[1722445574687,4.4311,3302.5,3302.3,3.02812]
[1722445574913,4.4311,3302.5,3302.4,3.0281]
[1722445575043,4.4311,3302.5,3302.4,6.0562]
[1722445575249,4.4311,3302.5,3302.4,6.12539153]
[1722445575858,4.4311,3302.5,3302.4,8.55179153]
[1722445576057,3.02719,3303.4,3302.8,3.02768]
[1722445576264,3.02704,3303.6,3303.0,3.02754]
[1722445576445,3.02704,3303.6,3303.0,3.02748]
[1722445576681,7.45808,3303.7,3303.1,3.09621486]
[1722445576881,4.4311,3303.7,3303.2,3.02734]
[1722445577222,4.4311,3303.7,3303.0,3.02748]
[1722445577223,3.02701,3303.6,3303.3,0.06868456]
[1722445577500,3.02701,3303.6,3303.0,3.02748]
[1722445577847,3.02701,3303.6,3303.1,0.06876198]
[1722445578064,6.05409,3303.6,3303.1,0.06876198]
[1722445578399,3.02701,3303.6,3303.1,0.06876198]
[1722445578549,3.02709,3303.5,3303.1,0.06876198]
[1722445578745,3.02736,3303.2,3303.1,0.06876198]
[1722445578974,6.05446,3303.4,3302.6,3.02783]
[1722445579173,3.0272,3303.4,3303.1,0.06865247]
[1722445579493,3.0272,3303.4,3302.7,3.02774]
[1722445579696,3.0272,3303.4,3303.2,0.06861376]
[1722445579897,3.0272,3303.4,3302.7,3.02774]
[1722445580097,3.0272,3303.4,3303.3,0.06857506]
[1722445580297,3.0272,3303.4,3302.7,3.02774]
[1722445580943,3.0272,3303.4,3302.4,2.9764]
[1722445580944,3.02736,3303.2,3302.8,0.06876861]
[1722445581198,3.02736,3303.2,3302.4,3.57802]
[1722445581199,3.02751,3303.1,3302.2,3.02823]
[1722445581401,3.02751,3303.1,3302.9,0.06872989]
[1722445581599,3.02751,3303.1,3302.5,3.028]
[1722445581798,6.05504,3303.1,3303.0,0.06869118]
[1722445582100,2.4093,3303.5,3302.0,2.3417]
[1722445582252,2.4093,3303.5,3302.2,3.02827]
[1722445582253,6.05559,3302.8,3302.2,3.02827]
[1722445582593,3.02793,3302.6,3302.0,5.37009]
[1722445582794,3.02793,3302.6,3302.0,3.02839]
[1722445583100,3.02815,3302.4,3301.6,2.4985]
[1722445583265,3.02815,3302.4,3301.6,3.780237]
[1722445583471,3.02815,3302.4,3301.8,3.02859]
[1722445584172,6.05592,3302.6,3301.9,3.0285]
[1722445584499,3.02801,3302.5,3301.9,3.0285]
[1722445584799,3.02811,3302.4,3301.7,3.02866]
[1722445584958,2.4113,3302.7,3301.3,3.02907]
[1722445584959,3.02842,3302.1,3301.5,3.02888]
[1722445585301,3.02842,3302.1,3301.0,2.2775]
[1722445585302,4.4311,3302.5,3302.0,3.0284]
[1722445585988,4.4311,3302.5,3302.0,6.05679]
[1722445586155,4.4311,3302.5,3302.1,3.02832]
[1722445586589,4.4311,3302.5,3302.2,3.02826]
[1722445586754,3.02783,3302.7,3302.2,0.06917097]
[1722445586958,3.02783,3302.7,3302.1,3.02834]
[1722445587159,3.02783,3302.7,3302.3,0.06693082]
[1722445587511,3.02783,3302.7,3302.1,3.02834]
[1722445587653,3.02768,3302.9,3302.4,0.06689209]
[1722445587850,4.4311,3303.0,3302.4,3.02804]
[1722445588099,4.4311,3303.0,3302.5,0.06683031]
[1722445588598,7.45866,3303.0,3302.5,0.06683031]
[1722445588980,7.45866,3303.0,3302.5,3.09481031]
[1722445588981,4.4311,3303.0,3302.5,3.09481031]
[1722445589293,7.45865,3303.0,3302.5,0.06683031]
[1722445589675,4.4311,3303.0,3302.5,0.06683031]
[1722445589872,4.4311,3303.0,3302.6,3.02791]
[1722445590070,4.4311,3303.0,3302.7,3.02782]
[1722445590271,4.4311,3303.0,3302.7,3.09457286]
[1722445590482,3.02715,3303.5,3302.9,3.02758]
[1722445590795,3.02715,3303.5,3303.0,3.02754]
[1722445591007,3.02715,3303.5,3303.0,3.09417672]
[1722445591204,3.02702,3303.6,3303.0,3.09417672]
[1722445591560,3.02714,3303.5,3303.0,0.06663672]
[1722445591762,3.02718,3303.4,3303.0,0.06663672]
[1722445592805,3.02718,3303.4,3303.1,0.06643949]
[1722445593176,3.02718,3303.4,3302.8,3.02771]
[1722445593379,3.02718,3303.4,3302.6,0.61227803]
[1722445593380,3.02746,3303.1,3302.6,0.61227803]
[1722445593607,3.02746,3303.1,3302.5,3.02793]
[1722445594110,3.02746,3303.1,3302.3,3.02818]
[1722445594111,3.02765,3302.9,3302.3,3.02811]
[1722445594268,3.0275,3303.1,3302.1,2.4914]
[1722445594469,6.05504,3303.1,3302.2,4.06693626]
[1722445594792,3.02751,3303.1,3302.5,3.02794]
[1722445595169,3.02756,3303.0,3302.5,3.02794]
[1722445595407,3.02779,3302.8,3302.2,4.00642]
[1722445595619,3.02779,3302.8,3302.2,3.02828]
[1722445595767,3.0275,3303.1,3302.2,3.02828]
[1722445596177,2.4257,3303.2,3302.0,3.02841]
[1722445596178,3.02769,3302.9,3302.0,3.02841]
[1722445596624,3.02769,3302.9,3302.2,3.02826]
[1722445596816,3.02769,3302.9,3302.2,3.3371421]
[1722445597422,6.7827,3303.7,3302.2,0.3088821]
[1722445597603,3.02734,3303.3,3302.7,3.02776]
[1722445597810,3.02734,3303.3,3302.3,0.55]
[1722445597982,3.02734,3303.3,3302.7,3.02777]
[1722445598178,3.0271,3303.5,3302.7,3.02775]
[1722445598379,6.7827,3303.7,3302.7,0.302775]
[1722445598380,9.80962,3303.7,3302.7,0.302775]
[1722445598581,7.45802,3303.7,3303.1,3.02745]
[1722445598780,3.02685,3303.8,3303.3,3.02727]
[1722445599010,3.02685,3303.8,3303.2,3.02735]
[1722445599222,3.02685,3303.8,3303.2,3.0273]
[1722445599531,3.02672,3303.9,3303.3,3.02727]
[1722445599892,3.02672,3303.9,3303.0,3.02749]
[1722445599893,3.02707,3303.6,3303.0,3.02749]
[1722445600221,3.02707,3303.6,3302.7,0.302775]
[1722445600222,3.02721,3303.4,3302.7,0.302775]
[1722445600428,3.02724,3303.4,3302.8,3.02767]
[1722445600783,3.02724,3303.4,3302.3,3.02815]
[1722445600784,3.02724,3303.4,3302.6,3.0279]
[1722445600995,3.02727,3303.3,3302.6,3.33062]
[1722445601179,3.02717,3303.5,3302.6,3.33062]
[1722445601411,3.02704,3303.6,3302.8,3.02768]
[1722445601606,3.02725,3303.4,3302.9,3.02762]
[1722445601806,3.02725,3303.4,3302.9,3.09397841]
[1722445602412,3.02704,3303.6,3303.0,3.02753]
[1722445602717,3.02704,3303.6,3303.0,3.0938497]
[1722445603023,3.02716,3303.5,3303.0,0.0663197]
[1722445604496,6.34092535,3304.0,3303.1,3.0274]
[1722445604701,3.02692,3303.7,3303.0,0.0663197]
[1722445604915,3.02692,3303.7,3303.2,0.06624228]
[1722445605112,3.02692,3303.7,3303.1,3.09368099]
[1722445605429,4.4311,3304.0,3303.2,3.09357228]
[1722445605734,3.02692,3303.7,3303.2,0.06624228]
[1722445606026,3.02692,3303.7,3303.0,3.02752]
[1722445606228,3.02714,3303.5,3303.3,0.06616611]
[1722445606527,3.02714,3303.5,3302.7,3.02776]
[1722445606739,3.02732,3303.3,3302.6,0.30279]
[1722445607038,3.02732,3303.3,3302.0,3.02845]
[1722445607039,3.02764,3302.9,3302.7,0.0643282]
[1722445607188,3.02764,3302.9,3302.1,2.3071]
[1722445607189,3.02773,3302.8,3302.1,2.3071]
[1722445607538,3.02765,3302.9,3302.8,0.06428948]
[1722445607691,2.386,3303.3,3301.9,3.0285]
[1722445607692,3.02773,3302.8,3301.9,3.02849]
[1722445607892,3.02773,3302.8,3302.1,3.02831]
[1722445608301,3.02773,3302.8,3302.2,0.06445554]
[1722445608483,3.02773,3302.8,3302.2,0.37373209]
[1722445608999,3.02722,3303.4,3302.6,3.02789]
[1722445609200,7.45821,3303.5,3302.7,3.08831254]
[1722445609399,4.4311,3303.5,3302.7,3.15275991]
[1722445609599,4.4311,3303.5,3302.7,0.06439737]
[1722445609600,3.02729,3303.3,3302.7,0.06439737]
[1722445609804,7.45825,3303.5,3302.7,3.94634811]
[1722445611234,4.4311,3303.5,3302.7,0.91852811]
[1722445611431,4.4311,3303.5,3302.7,0.06439737]
[1722445611432,3.02735,3303.3,3302.7,0.06439737]
[1722445611619,3.02737,3303.2,3302.5,5.44903]
[1722445611930,3.02737,3303.2,3302.8,0.06435865]
[1722445612141,3.02737,3303.2,3302.5,5.44903]
[1722445612292,3.02737,3303.2,3302.9,0.06431994]
[1722445612639,3.02769,3302.9,3302.2,3.33755655]
[1722445613234,3.02755,3303.0,3302.3,3.02817]
[1722445613544,3.02755,3303.0,3302.2,0.30927655]
[1722445613836,3.02764,3302.9,3302.3,0.33375666]
[1722445615239,7.45823,3303.5,3301.7,3.02865]
[1722445615240,3.02806,3302.5,3301.7,3.02865]
[1722445615412,3.02806,3302.5,3301.8,3.02864]
[1722445616494,6.05574,3302.7,3301.9,3.02855]
[1722445616696,6.05572,3302.7,3301.9,3.09324278]
[1722445616902,6.05572,3302.7,3302.0,0.30932428]
[1722445617124,3.02783,3302.7,3302.0,0.30932428]
[1722445617442,3.02783,3302.7,3302.1,0.06484589]
[1722445617623,3.02773,3302.8,3302.1,0.06484589]
[1722445617833,3.330503,3302.8,3302.1,0.06484589]
[1722445618006,3.02773,3302.8,3301.9,3.02849]
[1722445618206,3.02773,3302.8,3302.2,0.06480715]
[1722445618400,3.02773,3302.8,3301.9,3.02849]
[1722445618401,3.02785,3302.7,3302.0,3.02844]
[1722445618608,3.0276,3303.0,3302.3,0.06476843]
[1722445618825,3.0276,3303.0,3302.2,3.02823]
[1722445619160,3.0276,3303.0,3302.4,0.0647297]
[1722445619302,3.0276,3303.0,3302.3,0.36759143]
[1722445619643,4.4311,3303.1,3302.4,3.0928097]
[1722445619945,3.02764,3302.9,3302.4,0.0647297]
[1722445620945,3.02764,3302.9,3302.3,0.302823]
[1722445621102,7.45857,3303.1,3302.3,0.302823]
[1722445621308,3.02764,3302.9,3302.3,0.302823]
[1722445621501,3.02764,3302.9,3302.4,0.06472682]
[1722445622658,3.02779,3302.8,3302.4,0.06472682]
[1722445622806,3.02764,3302.9,3302.1,3.02837]
[1722445623012,3.02788,3302.7,3302.5,0.06466792]
[1722445623356,3.02788,3302.7,3302.1,0.302837]
[1722445623562,3.02768,3302.9,3302.6,0.0646292]
[1722445623855,3.02773,3302.8,3302.7,0.06459048]
[1722445624169,3.02773,3302.8,3302.1,0.302837]
[1722445624348,3.02785,3302.7,3302.0,3.02844]
[1722445624746,3.02785,3302.7,3301.9,3.02852]
[1722445624912,3.02785,3302.7,3302.0,0.55]
[1722445625459,3.02785,3302.7,3302.0,3.57844]
[1722445625641,6.0554,3302.9,3302.1,3.02832]
[1722445625955,3.02768,3302.9,3302.1,3.688991]
[1722445626261,3.02768,3302.9,3302.1,0.660671]
[1722445626262,3.02788,3302.7,3302.1,0.660671]
[1722445627456,3.02768,3302.9,3302.1,0.660671]
[1722445628473,7.45861,3303.1,3302.2,0.48446473]
[1722445628652,5.3684,3303.7,3302.3,2.9177]
[1722445628843,3.0,3303.6,3302.3,2.3677]
[1722445629153,3.02732,3303.3,3302.6,3.02791]
[1722445629651,3.02715,3303.5,3302.6,3.08846088]
[1722445629866,3.02715,3303.5,3302.8,3.02768]
[1722445630176,3.02719,3303.4,3302.8,3.02768]
[1722445630455,3.02654,3304.1,3303.4,3.02712]
[1722445630756,3.0266,3304.1,3303.4,3.02717]
[1722445631079,3.0266,3304.1,3303.0,2.3677]
[1722445631080,3.02714,3303.5,3303.0,2.3677]
[1722445631264,3.02684,3303.8,3303.0,2.3677]
[1722445631450,0.30266,3304.0,3302.7,3.02781]
[1722445631653,3.02693,3303.7,3303.1,0.06428576]
[1722445631854,3.02678,3303.9,3303.1,3.33658658]
[1722445632054,3.02686,3303.8,3303.2,0.06419231]
[1722445632451,7.45781,3304.0,3303.2,0.12473328]
[1722445632839,3.02675,3303.9,3303.2,0.12473328]
[1722445633042,7.45781,3304.0,3303.2,3.15208328]
[1722445633278,7.45781,3304.0,3303.2,3.80094827]
[1722445633786,3.02674,3303.9,3303.2,0.77359827]
[1722445633955,4.4311,3304.0,3303.2,0.06419231]
[1722445634156,3.02698,3303.7,3303.2,0.06419231]
[1722445634360,3.02698,3303.7,3302.9,3.02763]
[1722445634557,3.02677,3303.9,3303.3,0.0640787]
[1722445634767,3.02696,3303.7,3302.9,3.02763]
[1722445634944,6.05394,3303.7,3302.9,3.02763]
[1722445635158,3.02696,3303.7,3303.0,0.06422651]
[1722445635673,6.05394,3303.7,3303.0,0.06422651]
[1722445635982,3.02676,3303.9,3303.0,0.06422651]
[1722445636184,3.02683,3303.8,3303.1,3.34264015]
[1722445636357,7.45779,3304.0,3303.2,0.06054498]
[1722445636682,3.02669,3304.0,3303.4,2.4674]
[1722445636887,3.02654,3304.1,3303.4,2.4674]
[1722445637044,4.68651,3304.3,3303.5,0.06401858]
[1722445637251,3.02654,3304.1,3303.4,2.4674]
[1722445637547,3.02654,3304.1,3303.6,0.06397988]
[1722445637748,3.02638,3304.3,3303.6,3.02699]
[1722445637975,3.026,3304.7,3303.9,3.02672]
[1722445638492,3.026,3304.7,3304.0,0.06381071]
[1722445640488,3.02632,3304.4,3304.0,0.06381071]
[1722445640645,3.02612,3304.6,3303.4,2.4674]
[1722445640852,3.02687,3303.8,3303.0,5.41779]
[1722445641068,3.02687,3303.8,3303.5,0.06329264]
[1722445641387,3.02687,3303.8,3303.0,5.41779]
[1722445641690,3.02726,3303.4,3303.1,0.06145447]
[1722445641988,3.02726,3303.4,3302.5,3.02794]
[1722445641989,3.02681,3303.8,3302.5,2.3903]
[1722445642191,3.02733,3303.3,3303.2,0.05960502]
[1722445642343,3.02733,3303.3,3302.5,5.41825]
[1722445642344,3.02715,3303.5,3302.6,3.02789]
[1722445642550,3.0272,3303.4,3303.2,0.05960502]
[1722445642751,3.02715,3303.5,3302.6,3.02782]
[1722445642949,3.02727,3303.3,3302.6,3.02782]
[1722445643267,3.02715,3303.5,3302.7,3.02782]
[1722445643649,3.02731,3303.3,3302.5,5.41822]
[1722445644192,3.02695,3303.7,3302.6,3.0279]
[1722445644586,6.05393,3303.7,3302.8,3.02769]
[1722445644785,3.02716,3303.5,3302.8,3.02769]
[1722445645153,3.02695,3303.7,3302.9,3.02764]
[1722445645755,3.02709,3303.5,3302.7,3.02773]
[1722445646291,3.02709,3303.5,3302.6,3.08841958]
[1722445646292,3.02709,3303.5,3302.8,3.63932496]
[1722445646659,6.0539,3303.7,3302.9,0.05972115]
[1722445646853,6.0539,3303.7,3302.7,3.02774]
[1722445646854,3.02694,3303.7,3302.7,3.02774]
[1722445647117,3.02711,3303.5,3303.0,0.05984376]
[1722445647260,3.02695,3303.7,3302.8,3.02765]
[1722445647458,3.02695,3303.7,3303.1,0.05980505]
[1722445647659,3.02686,3303.8,3302.9,3.02763]
[1722445647891,3.02697,3303.7,3303.0,0.05984376]
[1722445648153,3.02705,3303.6,3303.0,0.05984376]
[1722445648359,3.02719,3303.4,3303.0,0.05984376]
[1722445648560,3.02709,3303.5,3302.5,5.41826]
[1722445648790,3.02709,3303.5,3303.1,0.05979641]
[1722445648999,3.02709,3303.5,3302.7,3.02776]
[1722445649198,3.02709,3303.5,3303.2,0.0597577]
[1722445649411,3.02709,3303.5,3302.6,0.541826]
[1722445649556,9.08154,3303.4,3303.3,0.05786372]
[1722445649760,3.02757,3303.0,3302.1,3.0283]
[1722445649971,3.0277,3302.9,3302.2,3.02827]
[1722445650270,3.02775,3302.8,3302.3,0.302827]
[1722445650579,3.02775,3302.8,3302.4,0.05647678]
[1722445650972,3.02775,3302.8,3302.1,3.02835]
[1722445651172,3.02757,3303.0,3302.5,0.05643806]
[1722445651432,3.02757,3303.0,3302.1,3.02835]
[1722445651433,3.02764,3302.9,3302.1,3.02835]
[1722445651728,3.02764,3302.9,3302.1,6.05665]
[1722445651903,3.02764,3302.9,3302.2,3.91923923]
[1722445652677,3.02774,3302.8,3302.2,0.89096923]
[1722445653478,6.05555,3302.8,3302.2,0.89096923]
[1722445653685,3.02774,3302.8,3302.2,0.89096923]
[1722445654116,3.02758,3303.0,3302.2,3.91923923]
[1722445654320,6.0552,3303.0,3302.2,3.91923923]
[1722445654497,3.02766,3302.9,3302.2,3.91923923]
[1722445654907,3.02766,3302.9,3302.2,3.91917923]
[1722445655083,3.02766,3302.9,3302.3,0.39191792]
[1722445655284,3.02766,3302.9,3302.3,0.44886846]
[1722445655584,3.0276,3303.0,3302.3,0.44886846]
[1722445655891,3.0276,3303.0,3302.3,0.39191792]
[1722445656093,3.02772,3302.9,3302.4,0.05691181]
[1722445656406,3.02774,3302.8,3302.4,0.05691181]
[1722445656787,3.0276,3303.0,3302.4,0.05691181]
[1722445656987,6.05523,3303.0,3302.4,0.05691181]
[1722445657791,3.02765,3302.9,3302.4,0.05691181]
[1722445658523,3.02751,3303.1,3302.4,0.05691181]
[1722445658725,3.02741,3303.2,3302.4,0.40461578]
[1722445658908,3.02748,3303.1,3302.4,3.43265578]
[1722445659112,3.02748,3303.1,3302.4,3.49321008]
[1722445659284,3.02748,3303.1,3302.5,3.02799]
[1722445659493,3.02748,3303.1,3302.5,3.0849726]
[1722445659748,3.02748,3303.1,3302.5,3.73710669]
[1722445659942,3.02733,3303.3,3302.5,3.73710669]
[1722445660112,4.4311,3303.4,3302.9,3.02758]
[1722445660429,3.02719,3303.4,3302.7,3.02779]
[1722445660633,3.02719,3303.4,3303.0,0.05675443]
[1722445660806,3.02719,3303.4,3302.8,0.60059339]
[1722445661007,3.02719,3303.4,3302.8,0.65742525]
[1722445661300,3.02701,3303.6,3302.8,0.65742525]
[1722445661503,3.02718,3303.4,3302.8,0.05683186]
[1722445661692,3.02701,3303.6,3302.8,3.08455186]
[1722445661888,3.02701,3303.6,3302.8,3.14509884]
[1722445662102,3.02709,3303.5,3302.9,3.02764]
[1722445662302,3.02709,3303.5,3302.9,3.08442161]
[1722445662507,3.02709,3303.5,3303.0,0.30844216]
[1722445662705,3.02729,3303.3,3303.0,0.0567429]
[1722445662892,3.02729,3303.3,3302.6,5.39908]
[1722445663106,3.02729,3303.3,3303.1,0.05670419]
[1722445663315,3.02736,3303.2,3302.6,2.3712]
[1722445664304,3.02714,3303.5,3302.6,5.3991]
[1722445664512,3.02714,3303.5,3302.7,0.60512341]
[1722445664929,3.02714,3303.5,3302.7,3.63294341]
[1722445665118,6.0543,3303.5,3302.7,3.63294341]
[1722445665297,3.02719,3303.4,3302.7,3.63294341]
[1722445666423,3.02733,3303.3,3302.7,0.60512341]
[1722445667999,3.02718,3303.4,3302.7,3.63293341]
[1722445668198,3.02718,3303.4,3302.8,0.90320234]
[1722445670835,3.027,3303.6,3302.8,3.93093234]
[1722445671034,4.4311,3304.0,3303.0,3.02749]
[1722445671035,7.45777,3304.0,3303.0,3.02749]
[1722445671235,7.45777,3304.0,3303.3,5.4054]
[1722445671236,4.4311,3304.0,3303.3,5.4054]
[1722445671453,7.45778,3304.0,3303.4,0.54054]
[1722445671684,3.02681,3303.8,3303.4,0.54054]
[1722445671971,7.45778,3304.0,3303.3,2.3782]
[1722445671972,10.48448,3304.0,3303.3,2.3782]
[1722445672175,7.45778,3304.0,3303.3,2.3782]
[1722445672343,4.4311,3304.0,3303.3,5.40546]
[1722445672539,7.45774,3304.0,3303.3,5.40546]
[1722445673023,4.4311,3304.0,3303.3,5.40541]
[1722445673228,3.02523,3305.6,3304.7,3.02593]
[1722445673548,3.0253,3305.5,3304.8,3.02589]
[1722445673746,3.0253,3305.5,3304.2,3.02641]
[1722445673747,3.0253,3305.5,3304.5,3.02613]
[1722445673949,6.05064,3305.5,3304.7,3.02591]
[1722445674271,3.0253,3305.5,3304.7,3.02591]
[1722445674427,3.0253,3305.5,3304.6,0.06051381]
[1722445674428,3.0253,3305.5,3304.8,3.02587]
[1722445674623,3.02473,3306.1,3304.9,3.02579]
[1722445674828,3.02523,3305.6,3304.9,3.02579]
[1722445675038,3.02523,3305.6,3304.7,3.08642375]
[1722445675240,3.02524,3305.6,3304.9,3.02579]
[1722445675459,3.02529,3305.5,3304.8,3.02588]
[1722445675938,3.02535,3305.4,3304.7,0.67177012]
[1722445676142,3.02535,3305.4,3304.7,3.08649375]
[1722445676639,3.02535,3305.4,3304.8,0.05391467]
[1722445680777,3.02494,3305.9,3304.9,5.33563]
[1722445680978,3.02531,3305.5,3304.9,2.3099]
[1722445681189,3.02531,3305.5,3305.0,0.05291014]
[1722445681390,3.02511,3305.7,3305.0,0.05291014]
[1722445681557,6.02474,3306.1,3305.0,0.05291014]
[1722445681753,3.02511,3305.7,3305.0,0.05291014]
[1722445682063,3.02532,3305.5,3305.0,0.05291014]
[1722445682261,3.02511,3305.7,3305.0,0.05291014]
[1722445682977,3.02493,3305.9,3305.0,3.92610295]
[1722445683177,3.02493,3305.9,3305.0,3.98661093]
[1722445683678,3.02489,3305.9,3305.1,3.02562]
[1722445683862,3.02489,3305.9,3305.1,3.07680374]
[1722445684063,3.02489,3305.9,3305.1,0.05118374]
[1722445684064,3.02508,3305.7,3305.1,0.05118374]
[1722445684267,3.02508,3305.7,3305.1,0.6746144]
[1722445684573,3.02516,3305.6,3305.1,0.6746144]
[1722445685647,3.02528,3305.5,3305.1,0.6746144]
[1722445685850,3.0253,3305.5,3305.1,0.05118374]
[1722445686082,3.0253,3305.5,3304.7,3.02596]
[1722445686235,3.0253,3305.5,3304.8,3.07715808]
[1722445686441,3.0253,3305.5,3304.9,3.0258]
[1722445686643,3.0253,3305.5,3305.0,0.05119075]
[1722445686842,3.02518,3305.6,3305.0,0.05119075]
[1722445687277,3.02518,3305.6,3305.0,0.35888983]
[1722445687465,3.02512,3305.7,3305.0,3.44506148]
[1722445687651,3.02517,3305.6,3305.0,0.41940148]
[1722445687981,3.02517,3305.6,3305.0,0.1117024]
[1722445688292,3.02536,3305.4,3305.0,0.05119075]
[1722445688588,3.02536,3305.4,3304.7,3.02594]
[1722445688742,3.02544,3305.3,3305.1,0.04956016]
[1722445688941,3.02544,3305.3,3304.6,3.02607]
[1722445689144,3.02544,3305.3,3304.7,0.59796182]
[1722445689661,3.02509,3305.7,3304.8,3.02587]
[1722445689859,3.02509,3305.7,3304.9,3.13590627]
[1722445691057,3.02522,3305.6,3304.9,3.13590627]
[1722445691272,3.02527,3305.5,3304.9,0.11014627]
[1722445691471,3.02527,3305.5,3304.9,0.04963749]
[1722445691670,3.02509,3305.7,3304.9,3.49831272]
[1722445691988,4.4311,3305.8,3305.1,3.02562]
[1722445692355,7.4561,3305.8,3305.1,3.0736462]
[1722445692685,7.4561,3305.8,3305.1,3.13415127]
[1722445693064,3.025,3305.8,3305.1,3.0736462]
[1722445693388,3.025,3305.8,3305.1,3.41724847]
[1722445694786,3.025,3305.8,3305.1,0.39162847]
[1722445695101,3.02508,3305.7,3305.1,0.39162847]
[1722445695401,3.02485,3306.0,3305.1,3.47775362]